bitfinex-derivatives/quotes_SOLF0:USTF0_20250101
["timestamp","ask_amount","ask_price","bid_price","bid_amount"]
[1735690472174,2.6292,190.56,190.54,8.48755579]
[1735690473472,3.22,190.58,190.54,8.48755579]
[1735690473773,2.629,190.57,190.54,8.48755579]
[1735690476970,1.9551,190.59,190.52,8.48755579]
[1735690476971,11.74755579,190.59,190.52,8.48755579]
[1735690477177,1.8971,190.58,190.52,8.48755579]
[1735690478575,2.6295,190.54,190.52,8.48755579]
[1735690479279,2.6292,190.56,190.52,11.11715579]
[1735690479583,1.8971,190.58,190.52,11.11715579]
[1735690480078,2.6292,190.56,190.52,11.11715579]
[1735690480477,1.8971,190.58,190.52,8.48755579]
[1735690480668,2.6295,190.53,190.52,8.48755579]
[1735690481067,3.26,190.54,190.5,219.0582811]
[1735690481269,2.63,190.5,190.49,8.48755579]
[1735690481475,3.26,190.54,190.49,8.48755579]
[1735690482581,2.6299,190.51,190.49,8.48755579]
[1735690483584,3.26,190.54,190.49,8.48755579]
[1735690484682,2.6299,190.51,190.49,8.48755579]
[1735690485981,2.63,190.5,190.49,8.48755579]
[1735690493383,1.8592,190.54,190.49,8.48755579]
[1735690493683,1.8592,190.54,190.52,8.48755579]
[1735690493886,2.6296,190.53,190.52,8.48755579]
[1735690494688,1.8971,190.58,190.52,8.48755579]
[1735690494888,3.26,190.57,190.54,8.48755579]
[1735690495484,1.8971,190.58,190.54,8.48755579]
[1735690495485,2.6293,190.56,190.54,8.48755579]
[1735690496584,1.8971,190.58,190.54,8.48755579]
[1735690496784,2.6291,190.57,190.56,8.48755579]
[1735690496986,1.9465,190.61,190.56,8.48755579]
[1735690497282,1.9465,190.61,190.58,8.48755579]
[1735690497690,2.6287,190.6,190.58,8.48755579]
[1735690498087,3.26,190.63,190.58,8.48755579]
[1735690498288,3.26,190.64,190.58,8.48755579]
[1735690498486,11.74755579,190.64,190.58,8.48755579]
[1735690498985,2.6287,190.59,190.58,8.48755579]
[1735690501885,8.48755579,190.62,190.49,7.26718957]
[1735690502089,2.6294,190.55,190.54,8.48755579]
[1735690504388,2.6285,190.61,190.54,8.48755579]
[1735690504589,8.48755579,190.63,190.56,8.48755579]
[1735690504983,8.48755579,190.62,190.56,8.48755579]
[1735690505189,2.6286,190.61,190.56,8.48755579]
[1735690505384,11.66755579,190.62,190.56,8.48755579]
[1735690506399,2.629,190.57,190.56,8.48755579]
[1735690506595,8.48755579,190.6,190.49,3.26]
[1735690506895,1.8808,190.59,190.55,8.48755579]
[1735690508497,2.6292,190.56,190.55,8.48755579]
[1735690509299,10.36835579,190.59,190.51,2.6298]
[1735690509504,2.63,190.51,190.49,8.48755579]
[1735690509698,8.48755579,190.55,190.48,8.48755579]
[1735690510891,2.63,190.51,190.48,8.48755579]
[1735690511498,2.6302,190.49,190.45,2.6307]
[1735690511693,5.2567,190.63,190.44,49.81622183]
[1735690511694,8.48755579,190.63,190.48,8.48755579]
[1735690511900,2.6292,190.56,190.55,8.48755579]
[1735690512097,8.48755579,190.6,190.53,8.48755579]
[1735690512497,3.18,190.59,190.53,8.48755579]
[1735690512801,2.6294,190.54,190.53,8.48755579]
[1735690513490,3.18,190.59,190.49,5.81]
[1735690513491,2.6298,190.52,190.51,8.48755579]
[1735690513694,8.48755579,190.58,190.51,8.48755579]
[1735690514495,2.6297,190.53,190.49,5.8101]
[1735690514794,8.48755579,190.58,190.51,8.48755579]
[1735690515007,8.48755579,190.56,190.5,5.34988688]
[1735690515193,2.63,190.51,190.49,8.48755579]
[1735690515391,3.6787,190.55,190.49,8.48755579]
[1735690515592,8.48755579,190.5,190.44,7.26718957]
[1735690515796,2.6307,190.45,190.44,7.26718957]
[1735690516198,3.18,190.47,190.42,15.75474536]
[1735690517302,1.9662,190.54,190.44,8.48755579]
[1735690517303,3.18,190.49,190.44,8.48755579]
[1735690517498,1.9662,190.54,190.44,8.48755579]
[1735690517499,3.18,190.5,190.44,8.48755579]
[1735690517704,3.18,190.51,190.46,8.48755579]
[1735690518201,8.48755579,190.53,190.46,8.48755579]
[1735690518402,3.18,190.51,190.46,8.48755579]
[1735690518606,2.6301,190.5,190.46,8.48755579]
[1735690518798,3.18,190.51,190.46,8.48755579]
[1735690519407,2.6303,190.48,190.46,8.48755579]
[1735690520407,2.6303,190.48,190.45,8.48755579]
[1735690520804,3.18,190.51,190.45,8.48755579]
[1735690521504,1.9662,190.54,190.47,8.48755579]
[1735690521699,13.63375579,190.54,190.47,8.48755579]
[1735690522208,5.1462,190.54,190.49,8.48755579]
[1735690522896,2.6299,190.51,190.49,8.48755579]
[1735690523496,1.9662,190.54,190.49,8.48755579]
[1735690523697,2.63,190.5,190.49,8.48755579]
[1735690524409,2.6295,190.54,190.49,8.48755579]
[1735690524707,6.8587,190.55,190.51,8.48755579]
[1735690525301,2.6295,190.54,190.51,8.48755579]
[1735690525513,3.6787,190.55,190.51,8.48755579]
[1735690526007,2.6297,190.53,190.51,8.48755579]
[1735690526207,3.6787,190.55,190.51,8.48755579]
[1735690526905,11.66755579,190.57,190.51,8.48755579]
[1735690528908,2.6297,190.53,190.51,8.48755579]
[1735690529309,11.66755579,190.57,190.51,8.48755579]
[1735690529506,11.66755579,190.57,190.49,8.48755579]
[1735690530402,2.6297,190.52,190.49,8.48755579]
[1735690534320,3.8138,190.6,190.51,8.48755579]
[1735690534513,3.8138,190.6,190.54,8.48755579]
[1735690534822,2.629,190.58,190.56,8.48755579]
[1735690536019,3.8138,190.6,190.56,8.48755579]
[1735690536214,1.9006,190.6,190.56,8.48755579]
[1735690536421,11.64755579,190.64,190.56,8.48755579]
[1735690536622,2.6286,190.61,190.58,8.48755579]
[1735690537021,11.64755579,190.64,190.58,8.48755579]
[1735690537425,3.8803,190.65,190.58,8.48755579]
[1735690537725,2.6281,190.64,190.6,8.48755579]
[1735690537921,2.6281,190.64,190.62,8.48755579]
[1735690538122,8.48755579,190.7,190.62,8.48755579]
[1735690538321,8.48755579,190.7,190.6,2.6286]
[1735690538524,8.48755579,190.7,190.63,8.48755579]
[1735690538721,2.6281,190.65,190.61,8.48755579]
[1735690539023,8.48755579,190.68,190.61,8.48755579]
[1735690539426,2.6277,190.67,190.61,11.11595579]
[1735690539725,8.48755579,190.68,190.61,8.48755579]
[1735690539928,2.6278,190.66,190.61,8.48755579]
[1735690540122,10.40515579,190.7,190.63,8.48755579]
[1735690540321,2.6274,190.69,190.63,11.11565579]
[1735690540527,2.6274,190.69,190.65,8.48755579]
[1735690541616,8.48755579,190.72,190.65,8.48755579]
[1735690541822,1.9767,190.73,190.67,8.48755579]
[1735690542026,8.48755579,190.72,190.65,8.48755579]
[1735690542622,2.6275,190.69,190.65,8.48755579]
[1735690543226,2.6275,190.69,190.67,8.48755579]
[1735690544628,2.6272,190.71,190.67,8.48755579]
[1735690544821,1.9767,190.73,190.67,8.48755579]
[1735690545528,1.9767,190.73,190.67,11.11515579]
[1735690545729,1.9767,190.73,190.67,8.48755579]
[1735690545928,2.6272,190.71,190.69,8.48755579]
[1735690546526,2.6272,190.7,190.69,8.48755579]
[1735690546722,8.48755579,190.72,190.57,46.60498193]
[1735690546923,8.48755579,190.7,190.63,8.48755579]
[1735690547326,2.6279,190.66,190.65,8.48755579]
[1735690551628,8.48755579,190.68,190.61,8.48755579]
[1735690551826,11.64755579,190.7,190.63,8.48755579]
[1735690552123,2.6281,190.64,190.63,8.48755579]
[1735690553330,8.48755579,190.68,190.57,49.23388193]
[1735690553630,2.6285,190.62,190.57,49.23388193]
[1735690553821,3.16,190.64,190.57,46.60498193]
[1735690554026,2.629,190.58,190.53,3.16]
[1735690554224,3.16,190.62,190.54,2.6294]
[1735690554529,3.16,190.62,190.59,8.48755579]
[1735690554530,2.6284,190.62,190.59,8.48755579]
[1735690554729,2.6284,190.62,190.61,8.48755579]
[1735690555528,1.7938,190.63,190.59,8.48755579]
[1735690555831,2.6287,190.6,190.59,8.48755579]
[1735690556321,2.6286,190.61,190.59,8.48755579]
[1735690556523,1.7938,190.63,190.59,8.48755579]
[1735690557019,2.6286,190.61,190.59,8.48755579]
[1735690557224,1.7938,190.63,190.59,8.48755579]
[1735690557424,3.16,190.64,190.61,8.48755579]
[1735690557622,10.69955579,190.68,190.61,8.48755579]
[1735690557927,3.16,190.66,190.61,8.48755579]
[1735690558534,10.69955579,190.68,190.61,8.48755579]
[1735690558734,3.16,190.67,190.61,8.48755579]
[1735690559434,2.6283,190.63,190.61,8.48755579]
[1735690560234,2.6281,190.64,190.61,8.48755579]
[1735690560435,1.9525,190.69,190.63,8.48755579]
[1735690560731,1.9525,190.69,190.65,8.48755579]
[1735690560936,2.6277,190.68,190.65,8.48755579]
[1735690561428,2.6278,190.66,190.65,8.48755579]
[1735690562831,1.9525,190.69,190.63,8.48755579]
[1735690562832,2.6282,190.64,190.63,8.48755579]
[1735690563538,2.628,190.65,190.63,8.48755579]
[1735690564030,1.9525,190.69,190.63,8.48755579]
[1735690564234,2.6281,190.64,190.63,8.48755579]
[1735690565532,2.6286,190.61,190.57,2.629]
[1735690565735,2.6286,190.61,190.6,8.48755579]
[1735690566637,2.6292,190.57,190.53,3.16]
[1735690566837,2.6292,190.57,190.56,8.48755579]
[1735690567136,2.6296,190.54,190.52,7.26718957]
[1735690567332,2.0698,190.63,190.53,8.48755579]
[1735690567532,2.0698,190.63,190.56,8.48755579]
[1735690567733,2.1102,190.62,190.56,8.48755579]
[1735690567940,2.629,190.57,190.56,8.48755579]
[1735690568230,3.16,190.6,190.54,8.48755579]
[1735690569131,2.6293,190.55,190.54,8.48755579]
[1735690570034,3.16,190.59,190.54,8.48755579]
[1735690570230,5.2702,190.62,190.56,8.48755579]
[1735690570432,2.1102,190.62,190.58,8.48755579]
[1735690571739,2.6286,190.61,190.58,8.48755579]
[1735690571934,2.1102,190.62,190.58,8.48755579]
[1735690573232,2.6287,190.6,190.58,8.48755579]
[1735690574933,2.1102,190.62,190.58,8.48755579]
[1735690575137,5.2139,190.67,190.6,8.48755579]
[1735690575438,2.0539,190.67,190.63,8.48755579]
[1735690576041,2.628,190.65,190.63,8.48755579]
[1735690576434,2.0539,190.67,190.63,8.48755579]
[1735690577139,2.6279,190.66,190.65,8.48755579]
[1735690577329,2.2266,190.72,190.65,8.48755579]
[1735690577529,2.2266,190.72,190.67,8.48755579]
[1735690577937,2.6273,190.7,190.67,8.48755579]
[1735690578334,2.6273,190.7,190.65,15.85884849]
[1735690578636,2.6271,190.71,190.65,13.23104849]
[1735690578935,2.2266,190.72,190.65,13.23104849]
[1735690579238,3.16,190.75,190.68,15.85854849]
[1735690579641,2.627,190.72,190.68,15.85854849]
[1735690580135,3.16,190.75,190.71,13.23104849]
[1735690580344,2.6267,190.74,190.71,13.23104849]
[1735690581437,2.1004,190.77,190.71,13.23104849]
[1735690581634,2.6266,190.76,190.71,13.23104849]
[1735690581831,2.0274,190.78,190.72,2.6269]
[1735690582838,2.6265,190.76,190.72,2.6269]
[1735690583231,4.6537,190.78,190.72,2.6269]
[1735690583434,3.16,190.81,190.71,13.23104849]
[1735690583736,3.16,190.81,190.74,2.6267]
[1735690583939,2.6262,190.79,190.74,2.6267]
[1735690584140,3.16,190.81,190.73,2.6268]
[1735690584335,3.16,190.81,190.71,13.23104849]
[1735690585434,2.6264,190.77,190.71,15.85804849]
[1735690585636,2.6264,190.77,190.71,13.23104849]
[1735690585834,3.16,190.81,190.71,13.23104849]
[1735690586440,3.16,190.81,190.74,13.23104849]
[1735690586938,2.626,190.79,190.74,13.23104849]
[1735690587739,3.16,190.81,190.74,13.23104849]
[1735690589234,4.2588,190.82,190.74,13.23104849]
[1735690589436,13.23104849,190.77,190.62,9.75454085]
[1735690589640,13.23104849,190.73,190.62,9.75454085]
[1735690589937,3.16,190.72,190.62,9.75454085]
[1735690590134,2.6274,190.69,190.64,2.6281]
[1735690590338,13.23104849,191.07,190.7,195.0]
[1735690590540,13.23104849,191.04,190.9,13.23104849]
[1735690591937,3.82,191.03,190.9,13.23104849]
[1735690592243,3.82,191.03,190.87,21.12291844]
[1735690593239,21.12291844,191.04,190.87,21.12291844]
[1735690593240,3.82,191.02,190.87,21.12291844]
[1735690593637,3.82,191.01,190.87,21.12291844]
[1735690593947,3.82,191.0,190.87,21.12291844]
[1735690594843,21.12291844,191.04,190.87,21.12291844]
[1735690595038,3.82,191.03,190.87,21.12291844]
[1735690595547,4.2267,191.02,190.87,21.12291844]
[1735690595734,3.82,191.01,190.87,21.12291844]
[1735690596338,4.2267,191.02,190.87,21.12291844]
[1735690596536,3.82,191.01,190.87,21.12291844]
[1735690602642,4.2267,191.02,190.87,21.12291844]
[1735690602848,4.2267,191.02,190.94,21.12291844]
[1735690603049,3.82,191.01,190.94,21.12291844]
[1735690603346,3.82,191.0,190.94,21.12291844]
[1735690603648,3.82,190.99,190.94,21.12291844]
[1735690605152,4.2267,191.02,190.94,21.12291844]
[1735690605453,3.82,190.99,190.94,21.12291844]
[1735690605942,3.82,190.99,190.91,21.12291844]
[1735690607748,3.82,190.99,190.88,21.12291844]
[1735690608249,3.82,190.99,190.83,7.26718957]
[1735690608452,3.82,190.99,190.86,21.12291844]
[1735690610143,3.82,190.99,190.83,21.12291844]
[1735690613248,21.12291844,191.0,190.83,21.12291844]
[1735690613454,3.82,190.99,190.89,21.12291844]
[1735690613849,2.2373,191.01,190.89,21.12291844]
[1735690614153,3.82,191.0,190.89,21.12291844]
[1735690614356,3.82,191.0,190.92,13.19624926]
[1735690614654,3.82,190.99,190.92,13.19624926]
[1735690615655,3.82,190.98,190.92,13.19624926]
[1735690619258,2.2373,191.01,190.92,13.19624926]
[1735690619556,3.82,191.0,190.92,13.19624926]
[1735690621951,3.82,191.0,190.89,13.19624926]
[1735690624563,13.19624926,190.99,190.86,13.19624926]
[1735690624858,2.6249,190.87,190.86,13.19624926]
[1735690625264,2.6252,190.85,190.84,320.45140368]
[1735690625564,2.6252,190.85,190.84,325.6799344]
[1735690625968,2.6252,190.85,190.84,5.22853072]
[1735690626261,2.6252,190.85,190.84,18.42477998]
[1735690627365,2.6251,190.86,190.84,18.42477998]
[1735690627765,2.6251,190.86,190.85,5.22853072]
[1735690629560,5.2473,190.97,190.84,15.82144926]
[1735690629561,2.6248,190.89,190.84,15.82144926]
[1735690629763,3.7,190.93,190.84,15.82144926]
[1735690629764,3.7,190.93,190.88,13.19624926]
[1735690629963,5.2473,190.97,190.88,13.19624926]
[1735690630265,3.7,190.96,190.88,13.19624926]
[1735690630871,3.7,190.96,190.89,5.24360537]
[1735690631071,2.624,190.94,190.89,5.24360537]
[1735690631272,3.7,190.96,190.88,13.19624926]
[1735690631873,2.6246,190.9,190.88,13.19624926]
[1735690632073,2.3953,190.9,190.88,13.19624926]
[1735690632376,2.6246,190.89,190.88,13.19624926]
[1735690632576,3.7,190.96,190.89,5.24894342]
[1735690632970,3.7,190.96,190.88,13.19624926]
[1735690633170,2.6246,190.9,190.88,13.19624926]
[1735690633573,3.7,190.97,190.88,15.82104926]
[1735690633875,3.7,190.97,190.91,13.19624926]
[1735690634271,2.6242,190.92,190.91,13.19624926]
[1735690634870,3.7,190.99,190.91,13.19624926]
[1735690635173,3.7,191.0,190.94,13.19624926]
[1735690635369,2.6235,190.98,190.94,13.19624926]
[1735690635573,54.56,191.04,190.94,13.19624926]
[1735690635776,3.7,191.03,190.94,13.19624926]
[1735690635976,3.7,191.03,190.95,5.26471811]
[1735690636179,2.6231,191.01,190.95,5.26471811]
[1735690636381,3.7,191.03,190.94,13.19624926]
[1735690636574,3.7,191.03,190.95,2.1176]
[1735690637176,2.6235,190.98,190.95,2.1176]
[1735690637571,2.6235,190.98,190.97,13.19624926]
[1735690637979,3.7,191.06,190.97,13.19624926]
[1735690638479,2.0976,191.09,190.97,13.19624926]
[1735690638678,3.7,191.08,190.97,13.19624926]
[1735690639579,3.7,191.07,191.0,13.19624926]
[1735690640475,2.0976,191.09,191.0,13.19624926]
[1735690640680,3.7,191.08,191.0,13.19624926]
[1735690640869,3.7,191.09,191.0,13.19624926]
[1735690641480,2.6227,191.04,191.0,13.19624926]
[1735690641880,3.7,191.09,191.0,13.19624926]
[1735690643581,2.623,191.01,191.0,13.19624926]
[1735690643783,3.7,191.09,190.97,13.19624926]
[1735690644476,13.19624926,191.08,190.95,2.1176]
[1735690644684,13.19624926,191.08,190.95,15.31384926]
[1735690644979,2.6237,190.96,190.95,15.31384926]
[1735690645181,2.6237,190.96,190.95,13.19624926]
[1735690645377,3.7,191.01,190.95,13.19624926]
[1735690646179,2.6236,190.97,190.95,13.19624926]
[1735690647380,15.22804926,191.08,190.95,15.82004926]
[1735690647381,2.6226,191.05,190.95,15.82004926]
[1735690647577,2.6226,191.05,190.92,2.0419]
[1735690647578,3.7,191.09,190.98,13.19624926]
[1735690647983,2.623,191.02,190.98,13.19624926]
[1735690648189,3.7,191.08,190.98,13.19624926]
[1735690648582,2.6229,191.02,190.98,13.19624926]
[1735690649987,15.25864926,191.14,191.01,15.81924926]
[1735690650282,3.62,191.1,191.01,15.81924926]
[1735690650481,3.62,191.1,191.04,13.19624926]
[1735690650677,2.622,191.08,191.04,13.19624926]
[1735690651083,2.6219,191.09,191.04,13.19624926]
[1735690651783,3.62,191.12,191.0,0.3451]
[1735690652088,3.62,191.12,191.0,13.54134926]
[1735690652788,13.19624926,191.11,191.0,13.19624926]
[1735690652988,2.6231,191.01,190.95,2.6238]
[1735690653190,3.62,191.04,190.94,3.62]
[1735690653388,3.62,191.04,190.96,13.19624926]
[1735690653689,2.6234,190.99,190.96,13.19624926]
[1735690653879,3.62,191.04,190.96,13.19624926]
[1735690654990,2.6235,190.97,190.96,13.19624926]
[1735690657086,2.6239,190.94,190.93,13.19624926]
[1735690661086,3.62,190.99,190.9,13.19624926]
[1735690662997,2.6242,190.93,190.9,13.19624926]
[1735690663204,3.62,190.99,190.9,13.19624926]
[1735690663395,2.6244,190.91,190.9,13.19624926]
[1735690664499,2.6242,190.92,190.9,13.19624926]
[1735690667502,3.62,190.99,190.9,13.19624926]
[1735690667703,2.1113,191.02,190.93,13.19624926]
[1735690667898,2.6237,190.96,190.93,13.19624926]
[1735690670500,2.6236,190.97,190.93,13.19624926]
[1735690670901,3.62,191.0,190.93,13.19624926]
[1735690671801,13.19624926,191.06,190.93,13.19624926]
[1735690672010,13.19624926,191.06,190.87,2.48410706]
[1735690672011,3.62,191.05,190.96,13.19624926]
[1735690672201,3.62,191.04,190.96,13.19624926]
[1735690672406,13.19624926,191.09,190.96,13.19624926]
[1735690672606,3.62,191.08,190.96,13.19624926]
[1735690673006,2.6235,190.98,190.96,13.19624926]
[1735690673506,2.6235,190.97,190.96,13.19624926]
[1735690678408,3.62,191.02,190.96,13.19624926]
[1735690678603,10.146,191.1,190.99,13.19624926]
[1735690679012,2.623,191.01,190.99,13.19624926]
[1735690679208,23.34224926,191.1,190.99,13.19624926]
[1735690679410,23.34224926,191.1,190.96,13.19624926]
[1735690679811,13.19624926,191.07,190.92,8.39151536]
[1735690680113,13.19624926,191.07,190.93,13.19624926]
[1735690680514,2.6238,190.95,190.93,13.19624926]
[1735690681016,2.6239,190.94,190.93,13.19624926]
[1735690682513,87.58254863,191.09,190.93,13.19624926]
[1735690682710,3.6,191.07,190.96,13.19624926]
[1735690683214,2.6226,191.04,190.96,13.19624926]
[1735690683415,3.6,191.07,190.96,13.19624926]
[1735690683809,2.6235,190.97,190.96,13.19624926]
[1735690684010,13.19624926,191.05,190.93,13.19624926]
[1735690684216,3.6,191.04,190.93,13.19624926]
[1735690684513,2.6239,190.94,190.93,13.19624926]
[1735690685417,3.6,190.99,190.93,13.19624926]
[1735690687522,2.6239,190.95,190.93,13.19624926]
[1735690687717,3.6,190.99,190.93,13.19624926]
[1735690688221,8.44917189,190.98,190.91,8.44917189]
[1735690688414,14.70407189,190.98,190.91,8.44917189]
[1735690688722,2.6242,190.92,190.91,8.44917189]
[1735690688916,3.6,190.94,190.91,8.44917189]
[1735690689117,6.2239,190.94,190.93,8.44917189]
[1735690689322,9.8549,190.98,190.93,8.44917189]
[1735690689514,9.8549,190.98,190.87,2.48410706]
[1735690689515,5.7253,190.98,190.96,8.44917189]
[1735690689720,2.6235,190.97,190.96,8.44917189]
[1735690690821,2.6238,190.95,190.94,8.44917189]
[1735690691423,5.7253,190.98,190.92,8.44917189]
[1735690692022,2.6241,190.93,190.92,8.44917189]
[1735690696530,2.6239,190.95,190.92,8.44917189]
[1735690696829,3.6,190.99,190.94,8.44917189]
[1735690698027,2.6238,190.95,190.94,8.44917189]
[1735690700230,2.6242,190.93,190.87,2.48410706]
[1735690700431,8.44917189,190.97,190.89,8.44917189]
[1735690700835,8.44917189,190.97,190.91,8.44917189]
[1735690701527,2.6242,190.92,190.91,8.44917189]
[1735690705435,3.6,190.97,190.91,8.44917189]
[1735690705733,3.6,191.0,190.95,8.44917189]
[1735690706230,3.6,191.0,190.93,8.44917189]
[1735690706826,3.6,191.0,190.95,8.44917189]
[1735690708035,2.6237,190.96,190.95,8.44917189]
[1735690708235,12.04917189,191.0,190.93,8.44917189]
[1735690708736,3.6,191.0,190.93,8.44917189]
[1735690709238,2.6239,190.94,190.93,8.44917189]
[1735690710239,2.6239,190.94,190.88,3.6]
[1735690710430,2.6239,190.94,190.93,8.44917189]
[1735690712938,87.58254863,191.08,191.02,8.44917189]
[1735690713135,87.58254863,191.08,191.04,8.44917189]
[1735690713939,87.58254863,191.08,190.95,2.6238]
[1735690714140,8.44917189,191.08,191.02,8.44917189]
[1735690715128,12.00917189,191.08,191.02,8.44917189]
[1735690716232,3.56,191.08,191.02,8.44917189]
[1735690716436,3.56,191.08,191.04,8.44917189]
[1735690716637,3.56,191.08,191.06,8.44917189]
[1735690716837,2.2117,191.09,191.06,8.44917189]
[1735690718237,2.0821,191.13,191.07,8.44917189]
[1735690720335,182.46364298,191.27,191.12,8.44917189]
[1735690720539,8.44917189,191.19,191.11,8.44917189]
[1735690722341,8.44917189,191.21,191.13,8.44917189]
[1735690722541,8.44917189,191.21,191.15,8.44917189]
[1735690725445,6.4227,191.22,191.15,8.44917189]
[1735690726346,8.44917189,191.21,191.15,8.44917189]
[1735690728748,8.44917189,191.21,191.06,2.0287]
[1735690728943,8.44917189,191.21,191.13,8.44917189]
[1735690730555,8.44917189,191.17,191.06,5.5887]
[1735690730753,8.44917189,191.17,191.1,8.44917189]
[1735690732753,12.00917189,191.17,191.1,8.44917189]
[1735690733344,12.00917189,191.17,191.04,3.56]
[1735690733545,12.00917189,191.17,191.1,8.44917189]
[1735690740954,8.44917189,191.13,190.97,6.509]
[1735690741155,3.54,191.12,191.05,8.44917189]
[1735690741358,5.6285,191.12,191.05,8.44917189]
[1735690741559,5.6285,191.12,191.07,8.44917189]
[1735690742059,4.2409,191.22,191.07,8.44917189]
[1735690742260,8.44917189,191.14,191.07,8.44917189]
[1735690742561,3.54,191.13,191.07,8.44917189]
[1735690746160,8.44917189,191.14,191.07,8.44917189]
[1735690746360,2.0885,191.21,191.11,8.44917189]
[1735690746361,3.54,191.15,191.11,8.44917189]
[1735690746661,3.54,191.14,191.11,8.44917189]
[1735690746857,11.98917189,191.14,191.03,2.2513]
[1735690747059,11.98917189,191.14,191.0,3.54]
[1735690747263,8.44917189,191.12,191.04,8.44917189]
[1735690747953,8.44917189,191.1,191.04,8.44917189]
[1735690748151,3.54,191.09,191.02,8.44917189]
[1735690748361,8.44917189,191.08,191.02,8.44917189]
[1735690748762,3.54,191.09,191.02,8.44917189]
[1735690749651,3.54,191.09,191.04,8.44917189]
[1735690750458,3.54,191.09,191.06,8.44917189]
[1735690750961,3.54,191.09,190.98,2.2513]
[1735690751267,8.44917189,191.08,191.01,8.44917189]
[1735690753166,8.44917189,191.06,190.99,8.44917189]
[1735690753967,3.54,191.05,190.99,8.44917189]
[1735690754962,8.44917189,191.04,190.91,4.7311]
[1735690755171,8.44917189,191.04,190.96,8.44917189]
[1735690755464,10.54507189,191.04,190.96,8.44917189]
[1735690756259,12.78227189,191.04,190.96,8.44917189]
[1735690756662,8.44917189,191.02,190.96,8.44917189]
[1735690756860,8.44917189,191.02,190.94,8.44917189]
[1735690757472,8.44917189,191.0,190.94,8.44917189]
[1735690757772,3.54,190.99,190.94,8.44917189]
[1735690758870,8.44917189,191.02,190.94,8.44917189]
[1735690759067,3.54,191.01,190.94,8.44917189]
[1735690759967,4.3331,191.04,190.96,8.44917189]
[1735690760174,3.54,191.04,191.0,8.44917189]
[1735690760362,3.54,191.04,191.02,8.44917189]
[1735690761269,8.44917189,191.1,191.02,8.44917189]
[1735690761270,3.54,191.06,191.02,8.44917189]
[1735690762267,3.54,191.07,191.02,8.44917189]
[1735690767468,3.54,191.07,191.04,8.44917189]
[1735690768673,6.4906,191.11,191.06,8.44917189]
[1735690768674,2.2233,191.11,191.06,8.44917189]
[1735690768971,3.5,191.1,191.06,8.44917189]
[1735690769162,55.49039254,191.12,191.06,8.44917189]
[1735690769368,3.5,191.11,191.06,8.44917189]
[1735690769569,11.94917189,191.11,191.06,8.44917189]
[1735690769963,8.44917189,191.11,191.06,8.44917189]
[1735690770166,3.5,191.1,191.06,8.44917189]
[1735690771273,3.5,191.1,191.04,8.44917189]
[1735690771772,3.5,191.1,191.03,8.44917189]
[1735690771973,8.44917189,191.09,191.01,8.44917189]
[1735690772268,8.44917189,191.03,190.9,7.00968898]
[1735690772471,8.44917189,191.01,190.9,2.1082]
[1735690772674,8.44917189,191.01,190.94,8.44917189]
[1735690772675,3.5,191.0,190.94,8.44917189]
[1735690774276,3.5,191.0,190.9,2.1082]
[1735690774473,3.5,191.0,190.94,8.44917189]
[1735690778076,2.1254,191.09,190.94,8.44917189]
[1735690778273,8.44917189,191.02,190.94,8.44917189]
[1735690778572,3.5,191.01,191.0,8.44917189]
[1735690778780,3.5,191.04,191.0,8.44917189]
[1735690778977,3.5,191.03,191.0,8.44917189]
[1735690779574,8.44917189,191.07,191.0,8.44917189]
[1735690779777,3.5,191.03,191.0,8.44917189]
[1735690780980,3.5,191.03,190.9,2.1082]
[1735690780981,11.94917189,191.03,190.9,2.1082]
[1735690781181,3.5,191.03,190.95,8.44917189]
[1735690781382,8.44917189,191.02,190.96,8.44917189]
[1735690782183,3.5,191.01,190.96,8.44917189]
[1735690782481,3.5,191.01,190.98,8.44917189]
[1735690782683,3.5,191.01,191.0,8.44917189]
[1735690783482,2.1254,191.09,191.0,8.44917189]
[1735690783483,3.5,191.05,191.0,8.44917189]
[1735690784079,3.5,191.05,190.94,8.38090468]
[1735690784287,8.44917189,191.04,190.91,3.5]
[1735690784485,8.44917189,191.04,190.96,8.44917189]
[1735690784877,8.44917189,191.02,190.96,8.44917189]